[Event "FISU WUMSCC Men 2024"]
[Site "Entebbe"]
[Date "2024.06.27"]
[Round "5.9"]
[White "Selepe, Lwazi"]
[Black "Alshnaiber, Yazeed"]
[Result "1/2-1/2"]
[ECO "C63"]
[WhiteElo "1913"]
[BlackElo "1831"]
[Annotator "NA RC"]
[PlyCount "187"]
[EventDate "2024.06.24"]
[EventType "swiss"]
[EventCountry "UGA"]
[SourceTitle "playchess.com"]
[Source "ChessBase"]
[SourceQuality "1"]
[TimeControl "5400+30"]

1. e4 {[%emt 0:00:01]} e5 {[%emt 0:03:00]} 2. Nf3 {[%emt 0:00:13]} Nc6 {[%emt 0:00:06]} 3. Bb5 {[%emt 0:00:11]} f5 {[%emt 0:00:06]} 4. d3 {[%emt 0:00:30]} fxe4 {[%emt 0:00:37]} 5. dxe4 {[%emt 0:00:07]} Nf6 {[%emt 0:00:02]} 6. O-O {[%emt 0:00:40]} Bc5 {[%emt 0:00:08]} 7. Qd3 {[%emt 0:01:24]} d6 {[%emt 0:00:08]} 8. Nc3 {[%emt 0:02:36]} O-O {[%emt 0:00:51] C63: Ruy Lopez: Schliemann/Jaenisch Defence.} 9. Nd5 {[%emt 0:02:54]} Nxd5 {[%emt 0:01:05]} 10. exd5 {[%emt 0:00:37]} Ne7 {[%emt 0:01:03]} 11. c4 {[%emt 0:09:24]} c6 {[%emt 0:09:41]} 12. dxc6 {[%emt 0:01:31]} bxc6 {[%emt 0:00:50]} 13. Bxc6 {[%emt 0:03:05]} Nxc6 {[%emt 0:02:09]} 14. Qd5+ {[%emt 0:00:07]} Kh8 {[%emt 0:00:07]} 15. Qxc6 {[%emt 0:00:05]} Bg4 {[%emt 0:02:41]} 16. Ng5 {[%emt 0:06:20]} h6 {[%emt 0:06:06]} 17. Ne4 {[%emt 0:04:39]} Rc8 {[%emt 0:00:28]} 18. Qb7 {[%emt 0:04:51]} Bd4 {[%emt 0:03:01]} 19. Be3 $11 {[%emt 0:04:06]} Rxc4 {[%emt 0:02:59]} 20. Bxd4 {[%emt 0:00:19]} Rxd4 {[%emt 0:00:07]} 21. f3 {[%emt 0:00:26]} Bf5 {[%emt 0:02:04]} 22. Qxa7 {[%emt 0:04:21]} Bxe4 {[%emt 0:00:09]} 23. fxe4 {[%emt 0:00:04]} Rxf1+ {[%emt 0:00:20]} 24. Rxf1 {[%emt 0:00:16]} Rxe4 {[%emt 0:00:16]} 25. Qf7 {[%emt 0:03:33]} Rb4 {[%emt 0:05:32]} 26. Qf8+ {[%emt 0:00:55]} Qxf8 {[%emt 0:00:21]} 27. Rxf8+ {[%emt 0:00:02]} Kh7 {[%emt 0:00:10]} 28. b3 {[%emt 0:00:56]} Rb6 {[%emt 0:03:33]} 29. Kf2 {[%emt 0:05:00]} Ra6 {[%emt 0:00:06]} 30. a4 {[%emt 0:00:03]} Rb6 {[%emt 0:00:05]} 31. Rf3 {[%emt 0:00:04]} e4 {[%emt 0:01:03]} 32. Rc3 {[%emt 0:00:37]} d5 {[%emt 0:00:10]} 33. a5 {[%emt 0:07:40]} Rb5 {[%emt 0:01:23]} 34. a6 {[%emt 0:00:28]} Ra5 {[%emt 0:15:27]} 35. Rc6 {[%emt 0:00:20]} d4 {[%emt 0:00:22]} 36. Re6 {[%emt 0:25:07]} Ra2+ {[%emt 0:08:12]} 37. Ke1 {[%emt 0:05:19]} d3 {[%emt 0:01:58]} 38. Rxe4 {[%emt 0:00:41]} Rxa6 {[%emt 0:00:04]} 39. Rd4 {[%emt 0:01:54]} Ra1+ {[%emt 0:00:11]} 40. Kf2 {[%emt 0:00:51]} Ra2+ {[%emt 0:00:09]} 41. Kf3 {[%emt 0:00:43]} d2 {[%emt 0:00:14]} 42. Ke2 {[%emt 0:02:10]} Rb2 {[%emt 0:00:08]} 43. Rd3 {[%emt 0:00:43]} g5 {[%emt 0:00:27]} 44. g4 {[%emt 0:00:42]} Kg6 {[%emt 0:00:16]} 45. Rd6+ {[%emt 0:00:25]} Kg7 {[%emt 0:00:08]} 46. Rb6 {[%emt 0:00:15]} d1=Q+ {[%emt 0:01:03]} 47. Kxd1 {[%emt 0:00:07]} Rxh2 {[%emt 0:00:06]} 48. Rc6 {[%emt 0:00:25]} Rb2 {[%emt 0:00:31]} 49. Rc3 {[%emt 0:00:06]} Rg2 {[%emt 0:00:07]} 50. Rc4 {[%emt 0:00:05]} h5 {[%emt 0:00:41]} 51. gxh5 {[%emt 0:00:46]} Kh6 {[%emt 0:00:04]} 52. Rc2 {[%emt 0:01:10]} Rg1+ {[%emt 0:02:31]} 53. Kd2 {[%emt 0:00:12]} Kxh5 {[%emt 0:00:05]} 54. Kd3 {[%emt 0:02:01]} Rb1 {[%emt 0:00:35]} 55. Rh2+ {[%emt 0:00:49]} Kg4 {[%emt 0:00:12]} 56. Rg2+ {[%emt 0:00:19]} Kf4 {[%emt 0:00:08]} 57. Kc2 {[%emt 0:01:59]} Rh1 {[%emt 0:01:16]} 58. Kd3 {[%emt 0:00:20]} g4 {[%emt 0:00:16]} 59. Rf2+ {[%emt 0:00:21]} Kg3 {[%emt 0:01:31]} 60. Rb2 {[%emt 0:00:05]} Kf3 {[%emt 0:03:40]} 61. b4 {[%emt 0:00:33]} g3 {[%emt 0:03:02]} 62. Kc4 {[%emt 0:00:52]} Rh2 {[%emt 0:03:37]} 63. Rb3+ {[%emt 0:00:15]} Kf4 {[%emt 0:00:05]} 64. Rb1 {[%emt 0:00:43]} Rc2+ {[%emt 0:08:19]} 65. Kd5 {[%emt 0:00:19]} g2 {[%emt 0:00:18]} 66. b5 {[%emt 0:00:50]} Rb2 {[%emt 0:00:36]} 67. Rxb2 {[%emt 0:00:29]} g1=Q {[%emt 0:00:05]} 68. Rb4+ {[%emt 0:00:03]} Kf5 {[%emt 0:00:14]} 69. b6 {[%emt 0:00:06]} Qg2+ {[%emt 0:00:20]} 70. Kc5 {[%emt 0:00:14]} Qb7 {[%emt 0:00:14]} 71. Kb5 {[%emt 0:01:00]} Ke5 {[%emt 0:00:17]} 72. Rc4 {[%emt 0:00:25]} Kd6 {[%emt 0:03:43]} 73. Rc7 {[%emt 0:00:37]} Qd5+ {[%emt 0:00:03]} 74. Ka6 {[%emt 0:00:07]} Qa2+ {[%emt 0:00:08]} 75. Kb7 {[%emt 0:00:16]} Qa5 {[%emt 0:00:27]} 76. Rc6+ {[%emt 0:00:07]} Kd5 {[%emt 0:00:22]} 77. Rc7 {[%emt 0:00:06]} Qa1 {[%emt 0:01:18]} 78. Kb8 {[%emt 0:00:36]} Kd6 {[%emt 0:02:21]} 79. b7 {[%emt 0:00:52]} Qe5 {[%emt 0:01:47]} 80. Rc8 {[%emt 0:00:18]} Kd7+ {[%emt 0:00:26]} 81. Ka7 {[%emt 0:00:19]} Qa5+ {[%emt 0:00:05]} 82. Kb8 {[%emt 0:00:03]} Qb6 {[%emt 0:00:16]} 83. Ka8 {[%emt 0:00:16]} Qa6+ {[%emt 0:00:04]} 84. Kb8 {[%emt 0:00:04]} Qa5 {[%emt 0:00:04]} 85. Rg8 {[%emt 0:00:47]} Qe5+ {[%emt 0:03:12]} 86. Ka8 {[%emt 0:00:02]} Qd5 {[%emt 0:01:24]} 87. Rc8 {[%emt 0:00:03]} Qa2+ {[%emt 0:00:58]} 88. Kb8 {[%emt 0:00:04]} Qa5 {[%emt 0:03:01]} 89. Rg8 {[%emt 0:00:05]} Qa1 {[%emt 0:05:04]} 90. Rc8 {[%emt 0:00:15]} Qe5+ {[%emt 0:00:06]} 91. Ka8 {[%emt 0:00:29]} Qd5 {[%emt 0:00:38]} 92. Kb8 {[%emt 0:00:29]} Qd6+ {[%emt 0:00:31]} 93. Ka8 {[%emt 0:00:11]} Qa6+ {[%emt 0:00:46]} 94. Kb8 {[%emt 0:00:43]} 1/2-1/2